Cogmind - Beta 13 @@@ ROGUE MODE // 2024.06.11 @ 16:29:09 Player: Kate+Gabe4evr Result: Self-destructed Performance ------------- Evolutions (2) 1000 Regions Visited (3) 600 Robots Destroyed (4) 20 Value Destroyed (64) 64 Prototype IDs (0) 0 Alien Tech Used (0) 0 Bonus (0) 0 TOTAL SCORE: 1684 Bonus ------- None Cogmind --------- Core Integrity 456/550 Matter 209/300 Energy 238/240 System Corruption 0% Temperature Cool (42) Movement Flying (31) Location -8/Materials Parts ------- > --- POWER (1) -------- Nuclear Core > --- PROPULSION (4) --- Flight Unit Flight Unit Flight Unit Flight Unit > --- UTILITY (4) ------ Advanced Visual Processing Unit > --- WEAPON (2) ------- Minigun Minigun > --- INVENTORY (5) ---- Flight Unit Assault Rifle Minigun Minigun Peak State ------------ > --- POWER ------------ Nuclear Core > --- PROPULSION ------- Flight Unit Flight Unit Flight Unit Flight Unit > --- UTILITY ---------- Advanced Visual Processing Unit > --- WEAPON ----------- Minigun Minigun > --- INVENTORY -------- Flight Unit Assault Rifle Minigun Minigun [Rating: 16] Favorites ----------- Power Ion Engine Engine Ion Engine Power Core Nuclear Core Propulsion Flight Unit Wheel Wheel Flight Unit Flight Unit Utility Advanced Visual Processing Unit Processor Advanced Visual Processing Unit Weapon Assault Rifle Ballistic Gun Assault Rifle Build | -11 -10 -9 -8 ------- Run | Yrd Mat Mat Mat Slots Evolved 4 | . . 2 2 Power . | . . . . Propulsion 2 | . . 1 1 Utility 2 | . . 1 1 Weapon . | . . . . Parts Attached 14 | 5 . . 9 Power 2 | 1 . . 1 Engine 1 | 1 . . . Core 1 | . . . 1 Reactor . | . . . . Propulsion 7 | 2 . . 5 Treads . | . . . . Leg . | . . . . Wheel 2 | 2 . . . Hover . | . . . . Flight 5 | . . . 5 Utility 1 | . . . 1 Device . | . . . . Storage . | . . . . Processor 1 | . . . 1 Hackware . | . . . . Protection . | . . . . Artifact . | . . . . Weapon 4 | 2 . . 2 Energy Gun . | . . . . Energy Cannon . | . . . . Ballistic Gun 4 | 2 . . 2 Ballistic Cannon . | . . . . Launcher . | . . . . Special Weapon . | . . . . Impact Weapon . | . . . . Slashing Weapon . | . . . . Piercing Weapon . | . . . . Special Melee Weapon . | . . . . Unidentified Prototypes . | . . . . Parts Lost 4 | . . 4 . Power 1 | . . 1 . Propulsion 2 | . . 2 . Utility . | . . . . Weapon 1 | . . 1 . Highest Loss Streak 3 | . . 3 . To Critical Strikes . | . . . . Average Slot Usage (%) 52 | . 71 47 46 Engine 5 | . 14 11 . Core 2 | . . . 5 Wheel 9 | . 28 14 . Flight 10 | . . . 20 Processor 1 | . . . 3 Ballistic Gun 20 | . 28 22 17 Naked Turns . | . . . . Heaviest Build 13 | 9 9 9 13 Greatest Support 20 | 20 20 20 16 Greatest Overweight (x) 1 | . . . 1 Average Overweight (x) . | . . . . Largest Inventory Capacity 5 | 5 5 5 5 Average Capacity 5 | 5 5 5 5 Most Carried 4 | . . . 4 Average Carried 1 | . . . 3 Final Capacity 5 | 5 5 5 5 Final Carried 4 | . . . 4 Class Distribution -------------------- 73% | Mutant 26% | Scavenger-Sprinter Dominant Class ---------------- Mutant | -10/Materials Mutant | -9/Materials Scavenger-Sprinter | -8/Materials Resources | -11 -10 -9 -8 ----------- Run | Yrd Mat Mat Mat Matter Collected 295 | 224 40 . 31 Remotely . | . . . . Salvage Created 89 | . 40 . 49 Parts 10 | . 3 . 7 Haulers Intercepted . | . . . . Recyclers Shooed . | . . . . Parts Field Recycled . | . . . . Retrieved Matter . | . . . . Parts Self-Destructed . | . . . . Prevented . | . . . . Kills | -11 -10 -9 -8 ------- Run | Yrd Mat Mat Mat Combat Hostiles Destroyed 4 | . 1 . 3 Guns 4 | . 1 . 3 Classes Destroyed 2 | . 1 . 1 Swarmer 3 | . . . 3 Grunt 1 | . 1 . . Best Kill Streak 3 | . 1 . 3 Combat Bots Only 3 | . 1 . 3 Max Kills in Single Turn 1 | . 1 . 1 Gunslinging . | . . . . Exploded . | . . . . Melee . | . . . . Uniques/NPCs Destroyed . | . . . . Combat | -11 -10 -9 -8 -------- Run | Yrd Mat Mat Mat Hostile Shots Fired 83 | . 3 42 38 Missed 31 | . . 12 19 Damage Taken 650 | 6 35 368 241 Core 187 | . 12 81 94 Absorbed by Shields . | . . . . Core Remaining (%) 91 | 100 95 79 . Volleys Fired 7 | . 3 . 4 Largest 2 | . 2 . 2 Hottest 50 | . 40 . 50 Shots Fired 14 | . 6 . 8 Gun 14 | . 6 . 8 Cannon . | . . . . Launcher . | . . . . Special . | . . . . Kinetic 14 | . 6 . 8 Thermal . | . . . . Explosive . | . . . . Electromagnetic . | . . . . Robot Hit Streak 3 | . 2 . 3 Robot Miss Streak 1 | . 1 . 1 Penetration Max . | . . . . Secondary Targets . | . . . . Shots Hit Robots 9 | . 4 . 5 Core Hits 5 | . 2 . 3 Critical Kills . | . . . . Critical Parts Destroyed . | . . . . Critical Strikes . | . . . . Melee Attacks . | . . . . Impact . | . . . . Slashing . | . . . . Piercing . | . . . . Sneak Attacks . | . . . . Combat Hostiles . | . . . . Follow-up Attacks . | . . . . Damage Inflicted 144 | 13 51 . 80 Guns 131 | . 51 . 80 Cannons . | . . . . Explosions . | . . . . Melee . | . . . . Ramming 13 | 13 . . . Kinetic 131 | . 51 . 80 Thermal . | . . . . Explosive . | . . . . Electromagnetic . | . . . . Impact . | . . . . Slashing . | . . . . Piercing . | . . . . Highest Corruption . | . . . . Average Corruption . | . . . . Corruption Purged . | . . . . Corruption Blocked . | . . . . Overload Shots . | . . . . Overflow Damage . | . . . . Projectiles . | . . . . Explosions . | . . . . Melee . | . . . . Knockbacks . | . . . . Impact . | . . . . Kinetic . | . . . . Secondary . | . . . . Self-Inflicted Damage 6 | 6 . . . Shots . | . . . . Rammed 1 | 1 . . . Targets Rammed 1 | 1 . . . Kicked . | . . . . Crushed . | . . . . Highest Temperature 38 | . . 5 38 Average Temperature 11 | . . 5 12 Received Heat Transfer 282 | . 18 138 126 Siege Activations . | . . . . Robots Corrupted . | . . . . Combat Hostiles . | . . . . Parts Fried . | . . . . Impact Corruptions . | . . . . Robots Melted . | . . . . Combat Hostiles . | . . . . Parts Melted . | . . . . Heat Transferred . | . . . . Parts Sabotaged . | . . . . Parts Stolen . | . . . . Parts Stripped . | . . . . Power Chain Reactions . | . . . . Alert | -11 -10 -9 -8 ------- Run | Yrd Mat Mat Mat Peak Influence 226 | . 35 34 226 Initial 14 | . . 14 1 Average 44 | . 13 23 87 Maximum Alert Level 1 | . . . 1 Low Security (%) 97 | 100 100 100 93 Level 1 2 | . . . 6 Level 2 . | . . . . Level 3 . | . . . . Level 4 . | . . . . Level 5 . | . . . . High Security . | . . . . Max Security . | . . . . Squads Dispatched 2 | . . 1 1 Investigation 1 | . . 1 . Extermination . | . . . . Reinforcement 1 | . . . 1 Assault . | . . . . Garrison . | . . . . Intercept . | . . . . Searches Triggered . | . . . . Construction Impeded . | . . . . Haulers Reinforced . | . . . . Active Scanning Responses . | . . . . Cargo Convoy Interrupts . | . . . . Stealth | -11 -10 -9 -8 --------- Run | Yrd Mat Mat Mat Distress Signals 5 | . . 1 4 Communications Jammed . | . . . . Distress Signals . | . . . . Times Spotted 40 | . 2 16 22 Peak Tracking Total 15 | . 1 15 12 Tactical Retreats 1 | . . . 1 Traps | -11 -10 -9 -8 ------- Run | Yrd Mat Mat Mat Traps Triggered 1 | . . 1 . Indirectly . | . . . . Trap Hack Attempts . | . . . . Triggered . | . . . . Disarmed . | . . . . Reprogrammed . | . . . . Reused . | . . . . Traps Extracted . | . . . . Installed . | . . . . Triggered . | . . . . Machines | -11 -10 -9 -8 ---------- Run | Yrd Mat Mat Mat Machines Disabled . | . . . . Max in Single Turn . | . . . . Machines Repaired . | . . . . Machines Dismantled . | . . . . Machines Sabotaged . | . . . . Overloaded Fab Kills . | . . . . Hacking | -11 -10 -9 -8 --------- Run | Yrd Mat Mat Mat Machines Accessed . | . . . . Terminals . | . . . . Fabricators . | . . . . Repair Stations . | . . . . Recycling Units . | . . . . Scanalyzers . | . . . . Garrison Access . | . . . . Total Hacks . | . . . . Successful . | . . . . Failed . | . . . . Catastrophic . | . . . . Database Lockouts . | . . . . Manual . | . . . . Terminals . | . . . . Fabricators . | . . . . Repair Stations . | . . . . Recycling Units . | . . . . Scanalyzers . | . . . . Garrison Access . | . . . . Terminal Hacks . | . . . . Fabricator Hacks . | . . . . Repair Station Hacks . | . . . . Recycling Unit Hacks . | . . . . Scanalyzer . | . . . . Garrison Access Hacks . | . . . . Unauthorized Hacks . | . . . . Terminals . | . . . . Fabricators . | . . . . Repair Stations . | . . . . Recycling Units . | . . . . Scanalyzers . | . . . . Garrison Access . | . . . . Data Cores Recovered . | . . . . Used . | . . . . Hacking Detections . | . . . . Full Trace Events . | . . . . Feedback Events . | . . . . Feedback Blocked . | . . . . Robot Schematics Acquired . | . . . . Robots Built . | . . . . Authchips . | . . . . Time . | . . . . Total Robot Build Rating . | . . . . Part Schematics Acquired . | . . . . Parts Built . | . . . . Authchips . | . . . . Time . | . . . . Total Part Build Rating . | . . . . Parts Repaired . | . . . . Time . | . . . . Parts Recycled . | . . . . Recycled Matter . | . . . . Retrieved Matter . | . . . . Retrieved Components . | . . . . Parts Scanalyzed . | . . . . Part Schematics Acquired . | . . . . Parts Damaged . | . . . . Bothacking | -11 -10 -9 -8 ------------ Run | Yrd Mat Mat Mat Used RIF Installer . | . . . . Robots Hacked . | . . . . Non-combat . | . . . . Combat . | . . . . Robot Hacks Applied . | . . . . Relay Couplers Released . | . . . . Fabnet Peak Effective % . | . . . . Robots Rewired . | . . . . Allies Hacked . | . . . . Hacks Repelled . | . . . . Allies | -11 -10 -9 -8 -------- Run | Yrd Mat Mat Mat Total Allies . | . . . . Largest Group . | . . . . Highest-Rated Group . | . . . . Highest-Rated Ally . | . . . . Total Orders . | . . . . Ally Attacks . | . . . . Total Damage . | . . . . Kills . | . . . . Allies Corrupted . | . . . . Allies Melted . | . . . . Intel | -11 -10 -9 -8 ------- Run | Yrd Mat Mat Mat Robot Analysis Total . | . . . . Derelict Logs Recovered . | . . . . Drone Launches . | . . . . Drone Recoveries . | . . . . Exploration | -11 -10 -9 -8 ------------- Run | Yrd Mat Mat Mat Turns Passed 288 | 50 54 64 120 Spaces Moved 416 | 59 56 81 220 Core 51 | 18 . 2 31 Treads . | . . . . Legs . | . . . . Wheels 176 | 41 56 79 . Hover . | . . . . Flight 189 | . . . 189 Fastest Speed 31 | 50 80 50 31 Average Speed 58 | 70 80 79 42 Slowest Speed 120 | 80 80 80 120 Overloaded Moves . | . . . . Propulsion Burnouts . | . . . . Robots Hopped 1 | . . . 1 Cave-ins Triggered . | . . . . Exploration Rate (%) 19 | 3 26 18 29 Regions Visited 3 Branch Regions . Pre-discovered Areas . | . . . . Known Exits Taken . | . . . . Unknown Exits Taken 3 | 1 1 1 . Scrap Searched . | . . . . Spaces Dug . | . . . . Terrain Destroyed . | . . . . Melee . | . . . . Projectile . | . . . . AOE . | . . . . Terrain Rammed . | . . . . Walls Destroyed . | . . . . Machines Disabled . | . . . . Actions | -11 -10 -9 -8 --------- Run | Yrd Mat Mat Mat Total 437 | 64 58 80 235 Wait 1 | . . . 1 Move 412 | 59 55 80 218 Hop 1 | . . . 1 Pick Up 2 | . . . 2 Fast Attach 12 | 5 . . 7 Attach . | . . . . Detach . | . . . . Swap 2 | . . . 2 Drop . | . . . . Fire 7 | . 3 . 4 Melee . | . . . . Ram . | . . . . Kick . | . . . . Crush . | . . . . Escape Stasis . | . . . . Rewire . | . . . . Trap . | . . . . Miscellaneous . | . . . . Route ------- -11/Scrapyard -10/Materials -9/Materials -8/Materials History --------- Turn | Location | Event 2 | -11/Scrapyard | Discovered new exit (range 16) 51 | -11/Scrapyard | Entered Materials 93 | -10/Materials | Discovered new exit (range 15) 105 | -10/Materials | Entered another Materials area 105 | -9/Materials | Evolved 2 slots: Propulsion x1, Utility x1 158 | -9/Materials | Discovered new exit (range 16) 169 | -9/Materials | Entered another Materials area 169 | -8/Materials | Evolved 2 slots: Propulsion x1, Utility x1 199 | -8/Materials | Lost 3 parts (1p1n1w) 289 | -8/Materials | Self-destructed Last Messages --------------- 00177_ O-16 Technician: "IFF HANDSHAKE FAILED. SECURING TERMINAL." 00179_ Acquired Minigun. 00179_ W-25 Informer sends out distress signal. 00183_ Acquired Minigun. 00186_ ALERT: Hostiles spotted, dispatching reinforcements to Terminal M011. 00188_ S-10 Pest destroyed. 00205_ Acquired 13 matter. 00207_ W-25 Informer sends out distress signal. 00208_ Acquired Flight Unit. 00215_ Acquired Nuclear Core. 00231_ Acquired Flight Unit. 00235_ Acquired 18 matter. 00236_ Acquired Adv. Visual Processing Unit. 00243_ Critical hit (Burn: +37). 00250_ W-25 Informer sends out distress signal. 00257_ K-01 Serf collects debris. 00260_ K-01 Serf cleans the Processing Tank. 00261_ Processing Tank disabled. 00288_ Critical hit (Burn: +37). Map ----- +----------------------------------------------------+ | | | | | | | | | ?????????????????????????????????????????????????? | | ?????????????????????????????????????????????????? | | ?????????????????????????????????????????????????? | | ????????????????????????????????????????????#####? | | ????????????????????????????????????????????# #? | | ????????????????????????????????????????????# #? | | ????????????????????????????????????????????#]! ## | | ??????????????????????????????????###########]! # | | ??????????????????????????????????# # ] # | | ??????????????????????????????????# #? /# | | ??????????????????????????????????# !!! #? # | | ??????????????????????????????????# !!! ###+## | | ??????????????????????????????????# !! [ + | | ??????????????????????????????????# # | | ??????????????????????????????????# # # | | ??????????????????????????????????# # # | | ???????????????#??????????????????# # # | | ???????????????# ?######################### # | | ???????????????# # """ """ ########### # | | ???????????????? /t """""""""gg/ # | | ???????????????? ?# """""Y #####+####### T | | ???????????????? # @g #??? ?????# # | | ????????????????? # #???** ?????# # | | ????????????????? # = #?? ** ????# # | | ????????????????? # #############?? ** ????# # | | ????????????????? #######################??## # | | ????????????????? ####### | | ?????????????????? | | ?????????????????? """"" """"" | | ??????????????????? """"" """"" | | ???????????????????# """"" """"" ####### | | ?????????#######???# ##?????###### | | ?????????#"""""#???# #???????????? | | ???????###""T""##### """"" """ " #???????????? | | ???????# """"" """"" +???????????? | | ???????# """"" """"" #???????????? | | ???????# #???????????? | | ???????# """ #???????????? | | ???????# """ ####################???????????? | | ???????# """ "#?????????????????????????????? | | ######## T#?????????????????????????????? | | "#?????????????????????????????? | | """ ##?????????????????????????????? | | """ #??????????????????????????????? | | ######### """ #??????????????????????????????? | | ????????# #??????????????????????????????? | +----------------------------------------------------+ Best States ------------- Heat Dissipation 31 Energy Generation 14 Energy Capacity 250 Matter Stores 300 Matter Capacity 300 Sight Range 20 Terrain Scan Density 10 Evasion (%) 63 Item Schematics ----------------- None Robot Schematics ------------------ None Fabricated ------------ Nothing Alien Tech Used ----------------- None Achievements -------------- None Challenges ------------ None Game ------ Seed NovaDefenseInjector Manual? 0 Play Time 00:04:51 Cumulative 20.9 hours Start 2024.06.11 @ 16:25:54 End 2024.06.11 @ 16:29:09 Sessions 1 Manual Loads 0 Difficulty Rogue Special Mode None Game No. 41 Rogue 41 Adventurer 0 Explorer 0 Win Type - Total 0 Types 0/0/0/0/0/0/0/0/0 Lore% 19 Gallery% 34 Achievement% 29 Wizard Run 0 Options --------- Layout 0 ASCII 0 Keyboard 1 Movement Numpad Keybinds 0 Fullscreen 1 Font 24/X11 Map View 76x50 Zoom Use 0% Tactical HUD 1 Map Filters NONE Filters NONE Steam 1 RUN: b4f9a272-f7a3-437f-bffd-8807ad670d12